[Event "Weekend Groninger Combinatie 2019"]
[Site "Groningen"]
[Date "2019.06.01"]
[Round "4.5"]
[White "Noordenbos, Daan"]
[Black "De Boer, Eelke"]
[Result "0-1"]
[ECO "B94"]
[WhiteElo "2033"]
[BlackElo "2333"]
[Annotator "ChessBase"]
[PlyCount "90"]
[EventDate "2019.05.30"]
[EventType "swiss"]
[EventCountry "NED"]
[SourceTitle "playchess.com"]
[Source "ChessBase"]
[SourceQuality "1"]
[TimeControl "5400+30"]

1. e4 {[%emt 1:30:30]} c5 {[%emt 0:01:06]} 2. Nf3 {[%emt 0:00:00]} d6 {[%emt 0:00:09]} 3. d4 {[%emt 0:00:00]} cxd4 {[%emt 0:00:09]} 4. Nxd4 {[%emt 0:00:00]} Nf6 {[%emt 0:00:10]} 5. Nc3 {[%emt 0:00:00]} a6 {[%emt 0:00:06]} 6. Bg5 {[%emt 0:00:00]} Nbd7 {[%emt 0:00:07]} 7. f4 {[%emt 0:00:00]} Qa5 {[%emt 0:02:27]} 8. Qf3 {[%emt 0:00:00]} h6 {[%emt 0:00:07]} 9. Bxf6 {[%emt 0:00:00]} Nxf6 {[%emt 0:00:07]} 10. f5 {[%emt 0:00:00]} g5 {[%emt 0:00:08]} 11. O-O-O {[%emt 0:00:00]} Bg7 {[%emt 0:00:32]} 12. Bc4 {[%emt 0:00:00]} Bd7 {[%emt 0:04:54]} 13. e5 {[%emt 0:00:00]} Qxe5 {[%emt 0:13:03]} 14. Qxb7 {[%emt 0:00:00]} O-O {[%emt 0:01:23]} 15. Rhe1 {[%emt 0:00:00]} Qc5 {[%emt 0:05:00]} 16. Bb3 {[%emt 0:00:00]} a5 {[%emt 0:10:05]} 17. Rxe7 {[%emt 0:00:00]} Ra7 {[%emt 0:01:23]} 18. Qf3 {[%emt 0:00:00]} a4 {[%emt 0:00:06]} 19. Rxd7 {[%emt 0:00:00]} Nxd7 {[%emt 0:03:22]} 20. Nxa4 {[%emt 0:00:00]} Rxa4 {[%emt 0:22:14]} 21. Bxa4 {[%emt 0:00:00]} Bxd4 {[%emt 0:00:09]} 22. Bxd7 {[%emt 0:00:00]} Qa7 {[%emt 0:02:01]} 23. Bb5 {[%emt 0:00:00]} Rb8 {[%emt 0:00:19]} 24. Qd5 {[%emt 0:00:00]} Be5 {[%emt 0:01:20]} 25. h3 {[%emt 0:00:00]} Qa5 {[%emt 0:02:25]} 26. a4 {[%emt 0:00:00]} Qb4 {[%emt 0:00:12]} 27. c3 {[%emt 0:00:00]} Qf4+ {[%emt 0:05:35]} 28. Kb1 {[%emt 0:00:00]} Qxf5+ {[%emt 0:00:09]} 29. Ka2 {[%emt 0:01:49]} Qf6 {[%emt 0:05:30]} 30. Rf1 {[%emt 0:01:58]} Qe7 {[%emt 0:00:19]} 31. Re1 {[%emt 0:02:12]} Kg7 {[%emt 0:01:37]} 32. Re2 {[%emt 0:01:42]} Rc8 {[%emt 0:01:48]} 33. Qb3 {[%emt 0:02:42]} Qf6 {[%emt 0:01:48]} 34. Re3 {[%emt 0:00:50]} Rc7 {[%emt 0:01:05]} 35. Rf3 {[%emt 0:00:14]} Qe7 {[%emt 0:00:09]} 36. Bc4 {[%emt 0:01:35]} Bf6 {[%emt 0:01:04]} 37. Bb5 {[%emt 0:00:53]} Qe4 {[%emt 0:00:39]} 38. Bd3 {[%emt 0:00:56]} Qe1 {[%emt 0:01:57]} 39. Qd5 {[%emt 0:01:17]} Bxc3 {[%emt 0:07:19]} 40. Qe4 {[%emt 0:01:49]} Qd2 {[%emt 0:00:07]} 41. Bc2 {[%emt 0:00:43]} Be5 {[%emt 0:00:02]} 42. Rxf7+ {[%emt 0:01:10]} Rxf7 {[%emt 0:00:28]} 43. Qh7+ {[%emt 0:00:08]} Kf8 {[%emt 0:00:06]} 44. Qxh6+ {[%emt 0:00:10]} Ke7 {[%emt 0:00:06]} 45. Qg6 {[%emt 0:00:04]} Qc1 {[%emt 0:00:44]} 0-1

[Event "Weekend Groninger Combinatie 2019"]
[Site "Groningen"]
[Date "2019.06.01"]
[Round "4.6"]
[White "Hilwerda, Jonas"]
[Black "Bosboom, Ardin"]
[Result "1-0"]
[ECO "B06"]
[WhiteElo "2317"]
[BlackElo "1965"]
[Annotator "ChessBase"]
[PlyCount "85"]
[EventDate "2019.05.30"]
[EventType "swiss"]
[EventCountry "NED"]
[SourceTitle "playchess.com"]
[Source "ChessBase"]
[SourceQuality "1"]
[TimeControl "5400+30"]

1. e4 {[%emt 0:00:00]} g6 {[%emt 0:00:00]} 2. d4 {[%emt 0:00:15]} Bg7 {[%emt 0:00:00]} 3. Nc3 {[%emt 0:02:29]} d6 {[%emt 0:00:00]} 4. g3 {[%emt 0:03:03]} Nd7 {[%emt 0:02:05]} 5. Bg2 {[%emt 0:00:13]} c5 {[%emt 0:00:20]} 6. Nge2 {[%emt 0:00:57]} Rb8 {[%emt 0:02:38]} 7. a4 {[%emt 0:00:57]} b6 {[%emt 0:00:39]} 8. O-O {[%emt 0:01:40]} Bb7 {[%emt 0:01:16]} 9. d5 {[%emt 0:03:23]} h5 {[%emt 0:04:59]} 10. Bg5 {[%emt 0:05:33]} a6 {[%emt 0:03:20]} 11. Kh1 {[%emt 0:03:40]} Ne5 {[%emt 0:04:45]} 12. f4 {[%emt 0:03:07]} Ng4 {[%emt 0:04:31]} 13. Qd2 {[%emt 0:01:04]} h4 {[%emt 0:03:45]} 14. Bxh4 {[%emt 0:04:11]} Bf6 {[%emt 0:00:10]} 15. Bf3 {[%emt 0:01:01]} Qc8 {[%emt 0:05:50]} 16. Bxf6 {[%emt 0:05:00]} N8xf6 {[%emt 0:14:08]} 17. h4 {[%emt 0:00:30]} Qd7 {[%emt 0:04:15]} 18. Ng1 {[%emt 0:04:55]} Bc8 {[%emt 0:02:46]} 19. Bg2 {[%emt 0:01:18]} b5 {[%emt 0:03:39]} 20. axb5 {[%emt 0:04:49]} axb5 {[%emt 0:00:03]} 21. Qe1 {[%emt 0:06:47]} b4 {[%emt 0:08:54]} 22. Nd1 {[%emt 0:01:05]} Bb7 {[%emt 0:01:24]} 23. Nh3 {[%emt 0:01:55]} Qb5 {[%emt 0:06:16]} 24. Ndf2 {[%emt 0:03:41]} Qc4 {[%emt 0:03:14]} 25. Nxg4 {[%emt 0:06:32]} Nxg4 {[%emt 0:00:13]} 26. Bf3 {[%emt 0:02:48]} Nf6 {[%emt 0:01:24]} 27. Rf2 {[%emt 0:03:10]} Bc8 {[%emt 0:05:47]} 28. Ng5 {[%emt 0:02:20]} Ng4 {[%emt 0:01:37]} 29. Rd2 {[%emt 0:01:51]} f6 {[%emt 0:00:36]} 30. Be2 {[%emt 0:01:22]} Qxe2 {[%emt 0:02:56]} 31. Qxe2 {[%emt 0:01:54]} fxg5 {[%emt 0:00:02]} 32. fxg5 {[%emt 0:03:16]} Ne5 {[%emt 0:00:20]} 33. Qf1 {[%emt 0:00:42]} Bg4 {[%emt 0:00:26]} 34. Rf2 {[%emt 0:00:37]} Bd7 {[%emt 0:02:11]} 35. Ra5 {[%emt 0:03:17]} Bg4 {[%emt 0:01:21]} 36. Ra7 {[%emt 0:03:33]} Bd7 {[%emt 0:01:32]} 37. Ra5 {[%emt 0:00:45]} Bg4 {[%emt 0:00:05]} 38. Rf4 {[%emt 0:00:18]} Bd7 {[%emt 0:01:06]} 39. Qa1 {[%emt 0:00:42]} Kd8 {[%emt 0:02:25]} 40. Ra7 {[%emt 0:00:59]} Rc8 {[%emt 0:00:33]} 41. Qa5+ {[%emt 0:01:12]} Ke8 {[%emt 0:00:02]} 42. Ra8 {[%emt 0:00:51]} Rd8 {[%emt 0:02:46]} 43. Rxd8# {[%emt 0:00:28]} 1-0

[Event "Weekend Groninger Combinatie 2019"]
[Site "Groningen"]
[Date "2019.06.01"]
[Round "4.7"]
[White "Villwock, Martin"]
[Black "Wuijts, Johan"]
[Result "0-1"]
[ECO "A85"]
[WhiteElo "2180"]
[BlackElo "1969"]
[Annotator "ChessBase"]
[PlyCount "64"]
[EventDate "2019.05.30"]
[EventType "swiss"]
[EventCountry "NED"]
[SourceTitle "playchess.com"]
[Source "ChessBase"]
[SourceQuality "1"]
[TimeControl "5400+30"]

1. d4 {[%emt 0:00:00]} e6 {[%emt 0:02:27]} 2. c4 {[%emt 0:00:00]} f5 {[%emt 0:00:25]} 3. Nc3 {[%emt 0:00:19]} Nf6 {[%emt 0:00:05]} 4. f3 {[%emt 0:00:40]} Bb4 {[%emt 0:02:33]} 5. Bd2 {[%emt 0:01:37]} O-O {[%emt 0:00:42]} 6. a3 {[%emt 0:00:58]} Bxc3 {[%emt 0:04:26]} 7. Bxc3 {[%emt 0:00:13]} d6 {[%emt 0:03:01]} 8. Qc2 {[%emt 0:03:32]} Qe7 {[%emt 0:01:32]} 9. e3 {[%emt 0:03:10]} e5 {[%emt 0:00:26]} 10. O-O-O {[%emt 0:02:04]} c5 {[%emt 0:17:38]} 11. Ne2 {[%emt 0:05:49]} a6 {[%emt 0:04:59]} 12. Ng3 {[%emt 0:05:25]} cxd4 {[%emt 0:14:29]} 13. exd4 {[%emt 0:00:35]} Nc6 {[%emt 0:01:40]} 14. d5 {[%emt 0:02:36]} Nd8 {[%emt 0:01:57]} 15. c5 {[%emt 0:04:57]} Nf7 {[%emt 0:12:30]} 16. Nxf5 {[%emt 0:02:51]} Bxf5 {[%emt 0:00:35]} 17. Qxf5 {[%emt 0:00:08]} dxc5 {[%emt 0:00:09]} 18. f4 {[%emt 0:13:56]} exf4 {[%emt 0:04:52]} 19. Qxf4 {[%emt 0:10:07]} Qe4 {[%emt 0:04:20]} 20. Qg3 {[%emt 0:04:24]} Nh5 {[%emt 0:02:06]} 21. Qh3 {[%emt 0:03:49]} Nf4 {[%emt 0:01:45]} 22. Qd7 {[%emt 0:05:26]} b5 {[%emt 0:02:30]} 23. Re1 {[%emt 0:03:45]} Qxd5 {[%emt 0:02:33]} 24. Qg4 {[%emt 0:00:44]} Ng6 {[%emt 0:00:35]} 25. h4 {[%emt 0:01:56]} Nfe5 {[%emt 0:02:36]} 26. Qg3 {[%emt 0:00:54]} Rae8 {[%emt 0:01:37]} 27. h5 {[%emt 0:01:06]} Nf4 {[%emt 0:00:19]} 28. Rh4 {[%emt 0:03:02]} Ned3+ {[%emt 0:01:37]} 29. Bxd3 {[%emt 0:01:42]} Nxd3+ {[%emt 0:00:20]} 30. Kb1 {[%emt 0:00:40]} Rxe1+ {[%emt 0:00:15]} 31. Bxe1 {[%emt 0:00:23]} Qb3 {[%emt 0:02:26]} 32. Bc3 {[%emt 0:01:14]} Rf1+ {[%emt 0:08:35] Kc2} 0-1

[Event "Weekend Groninger Combinatie 2019"]
[Site "Groningen"]
[Date "2019.06.01"]
[Round "4.8"]
[White "Traetmar, Mattis"]
[Black "Colbow, Collin"]
[Result "0-1"]
[ECO "B76"]
[WhiteElo "1988"]
[BlackElo "2169"]
[Annotator "ChessBase"]
[PlyCount "100"]
[EventDate "2019.05.30"]
[EventType "swiss"]
[EventCountry "NED"]
[SourceTitle "playchess.com"]
[Source "ChessBase"]
[SourceQuality "1"]
[TimeControl "5400+30"]

1. e4 {[%emt 0:00:00]} c5 {[%emt 0:00:00]} 2. Nf3 {[%emt 0:00:00]} d6 {[%emt 0:00:00]} 3. d4 {[%emt 0:00:00]} cxd4 {[%emt 0:00:04]} 4. Nxd4 {[%emt 0:00:00]} Nf6 {[%emt 0:00:06]} 5. Nc3 {[%emt 0:00:00]} g6 {[%emt 0:00:05]} 6. Be3 {[%emt 0:00:00]} Bg7 {[%emt 0:00:04]} 7. f3 {[%emt 0:00:00]} O-O {[%emt 0:00:06]} 8. Qd2 {[%emt 0:00:14]} Nc6 {[%emt 0:00:06]} 9. g4 {[%emt 0:00:34]} Nxd4 {[%emt 0:01:31]} 10. Bxd4 {[%emt 0:00:06]} Be6 {[%emt 0:01:13]} 11. O-O-O {[%emt 0:05:44]} Qa5 {[%emt 0:03:48]} 12. Kb1 {[%emt 0:00:16]} Rfc8 {[%emt 0:01:07]} 13. Nd5 {[%emt 0:04:42]} Qxd2 {[%emt 0:01:50]} 14. Nxf6+ {[%emt 0:14:13]} Bxf6 {[%emt 0:00:27]} 15. Rxd2 {[%emt 0:00:04]} Bg5 {[%emt 0:06:53]} 16. Rd1 {[%emt 0:04:15]} Bf4 {[%emt 0:03:21]} 17. h4 {[%emt 0:01:45]} f6 {[%emt 0:04:56]} 18. Bd3 {[%emt 0:07:35]} h6 {[%emt 0:15:10]} 19. b3 {[%emt 0:05:56]} Kf7 {[%emt 0:05:06]} 20. Rdg1 {[%emt 0:11:38]} Rf8 {[%emt 0:08:45]} 21. h5 {[%emt 0:05:04]} g5 {[%emt 0:02:01]} 22. Bf2 {[%emt 0:00:43]} a6 {[%emt 0:06:25]} 23. Bb6 {[%emt 0:02:28]} Rfc8 {[%emt 0:01:33]} 24. Re1 {[%emt 0:01:32]} Rc6 {[%emt 0:00:50]} 25. Be3 {[%emt 0:00:28]} Be5 {[%emt 0:02:05]} 26. Ref1 {[%emt 0:03:44]} Rac8 {[%emt 0:01:06]} 27. f4 {[%emt 0:03:42]} gxf4 {[%emt 0:01:58]} 28. Bxf4 {[%emt 0:00:15]} Bxf4 {[%emt 0:03:43]} 29. Rxf4 {[%emt 0:00:03]} Rc5 {[%emt 0:00:27]} 30. a4 {[%emt 0:06:07]} Rg5 {[%emt 0:02:05]} 31. Be2 {[%emt 0:01:48]} Rc3 {[%emt 0:01:41]} 32. Rg1 {[%emt 0:04:53]} Rh3 {[%emt 0:06:34]} 33. e5 {[%emt 0:00:37]} dxe5 {[%emt 0:02:54]} 34. Rb4 {[%emt 0:00:08]} f5 {[%emt 0:05:06]} 35. Rxb7 {[%emt 0:01:49]} f4 {[%emt 0:00:14]} 36. Bxa6 {[%emt 0:07:44]} f3 {[%emt 0:00:34]} 37. Bd3 {[%emt 0:00:27]} Rxg4 {[%emt 0:01:20]} 38. Bg6+ {[%emt 0:01:19]} Kf6 {[%emt 0:00:44]} 39. Rf1 {[%emt 0:01:37]} e4 {[%emt 0:00:47]} 40. a5 {[%emt 0:00:31]} e3 {[%emt 0:00:24]} 41. Bd3 {[%emt 0:00:27]} Bd5 {[%emt 0:05:48]} 42. Rb5 {[%emt 0:00:34]} Be4 {[%emt 0:01:14]} 43. Bc4 {[%emt 0:03:14]} f2 {[%emt 0:01:12]} 44. a6 {[%emt 0:00:16]} Rg1 {[%emt 0:00:53]} 45. Rb6+ {[%emt 0:01:22]} Kg7 {[%emt 0:01:16]} 46. Re6 {[%emt 0:01:25]} Bd5 {[%emt 0:02:12]} 47. Rxe7+ {[%emt 0:01:42]} Kf6 {[%emt 0:00:45]} 48. Rb7 {[%emt 0:01:18]} Bxc4 {[%emt 0:01:30]} 49. a7 {[%emt 0:00:14]} e2 {[%emt 0:00:11]} 50. Rb6+ {[%emt 0:02:27]} Be6 {[%emt 0:02:50]} 0-1

[Event "Weekend Groninger Combinatie 2019"]
[Site "Groningen"]
[Date "2019.06.01"]
[Round "4.9"]
[White "Van der Hagen, Loek"]
[Black "De Boer, Bas"]
[Result "1/2-1/2"]
[ECO "D12"]
[WhiteElo "1950"]
[BlackElo "2095"]
[Annotator "NA"]
[PlyCount "79"]
[EventDate "2019.05.30"]
[EventType "swiss"]
[EventCountry "NED"]
[SourceTitle "playchess.com"]
[Source "ChessBase"]
[SourceQuality "1"]
[TimeControl "5400+30"]

1. d4 {[%emt 0:00:00]} d5 {[%emt 0:00:00]} 2. Nf3 {[%emt 0:00:00]} Bf5 {[%emt 0:00:00]} 3. e3 {[%emt 0:00:00]} e6 {[%emt 0:00:00]} 4. c4 {[%emt 0:00:10]} c6 {[%emt 0:03:03]} 5. Nc3 {[%emt 0:00:14]} Nf6 {[%emt 0:01:39]} 6. Nh4 {[%emt 0:01:54]} Bg6 {[%emt 0:01:42]} 7. Nxg6 {[%emt 0:00:24]} hxg6 {[%emt 0:00:03]} 8. Bd3 {[%emt 0:01:30]} Nbd7 {[%emt 0:00:37] D12: Slav Defence: 3 Nf3 Nf6 4 e3 Bf5} (8... c5 9. Qb3 Qd7 10. cxd5 exd5 11. dxc5 Nc6 12. Bd2 Bxc5 13. Rc1 Rd8 14. Na4 Bd6 15. Nc5 Bxc5 16. Rxc5 {0-1 (34) Wojtaszek,R (2745)-Topalov,V (2741) Shamkir 2017}) 9. b3 {[%emt 0:01:20]} Bd6 {[%emt 0:01:30]} 10. h3 {[%emt 0:00:18]} e5 $146 {[%emt 0:08:00]} ({Predecessor:} 10... Bb4 11. Bd2 e5 12. cxd5 exd4 13. Ne4 Bxd2+ 14. Qxd2 Nxe4 15. Bxe4 Nf6 16. Qxd4 cxd5 {½-½ (79) Zaja,S (1734)-Klaric,L (1590) Sveti Vid 2014}) 11. cxd5 {[%emt 0:03:02]} cxd5 {[%emt 0:00:52]} 12. Nb5 {[%emt 0:04:53]} Bb4+ {[%emt 0:06:35]} 13. Bd2 {[%emt 0:02:18]} Bxd2+ {[%emt 0:00:07]} 14. Qxd2 {[%emt 0:00:03]} O-O {[%emt 0:00:43]} 15. O-O {[%emt 0:01:22]} e4 {[%emt 0:01:40]} 16. Be2 {[%emt 0:00:04]} a6 {[%emt 0:03:24]} 17. Nc3 {[%emt 0:03:18]} Qe7 {[%emt 0:03:15]} 18. Rfc1 {[%emt 0:02:44]} Rfc8 {[%emt 0:03:40]} 19. Rc2 {[%emt 0:01:47]} Rc6 {[%emt 0:04:35]} 20. Rac1 $14 {[%emt 0:00:53]} Rac8 {[%emt 0:00:13]} 21. Na4 {[%emt 0:01:29]} Nb8 {[%emt 0:08:12]} 22. Rxc6 {[%emt 0:08:07]} Nxc6 {[%emt 0:01:02]} 23. Rc2 {[%emt 0:01:55]} Rd8 {[%emt 0:02:47]} 24. Qc1 {[%emt 0:01:58]} Ne8 {[%emt 0:04:29]} 25. Rc5 {[%emt 0:06:02]} Nc7 {[%emt 0:00:29]} 26. Nb6 {[%emt 0:12:36]} Qg5 {[%emt 0:03:21]} 27. a4 {[%emt 0:07:27]} Ne6 {[%emt 0:06:51]} 28. Rxc6 {[%emt 0:02:27]} bxc6 {[%emt 0:00:07]} 29. Qxc6 {[%emt 0:02:03]} a5 {[%emt 0:00:19]} 30. Qb5 {[%emt 0:00:27]} Rb8 {[%emt 0:01:54]} 31. Qc6 {[%emt 0:08:47]} Qd8 {[%emt 0:02:42]} 32. Nxd5 {[%emt 0:01:02]} Rxb3 {[%emt 0:00:17]} 33. Nc3 {[%emt 0:01:00]} Rb2 {[%emt 0:09:22]} 34. Qxe4 {[%emt 0:08:49]} Qc7 {[%emt 0:03:58]} 35. Nd5 {[%emt 0:01:58]} Qc1+ {[%emt 0:02:13]} 36. Bf1 {[%emt 0:00:35]} Qe1 {[%emt 0:01:38]} 37. Qf3 {[%emt 0:05:21]} Rb1 {[%emt 0:11:37]} 38. Ne7+ {[%emt 0:00:14]} Kf8 {[%emt 0:00:43]} 39. Nxg6+ {[%emt 0:01:09]} Kg8 {[%emt 0:00:06]} 40. Ne7+ {[%emt 0:10:20]} 1/2-1/2

[Event "Weekend Groninger Combinatie 2019"]
[Site "Groningen"]
[Date "2019.06.01"]
[Round "4.10"]
[White "Zuiderweg, Edwin"]
[Black "Nicolai, Amir"]
[Result "0-1"]
[ECO "B26"]
[WhiteElo "1958"]
[BlackElo "2095"]
[Annotator "NA"]
[PlyCount "44"]
[EventDate "2019.05.30"]
[EventType "swiss"]
[EventCountry "NED"]
[SourceTitle "playchess.com"]
[Source "ChessBase"]
[SourceQuality "1"]
[TimeControl "5400+30"]

1. e4 {[%emt 0:00:00]} c5 {[%emt 0:00:00]} 2. Nc3 {[%emt 0:00:53]} Nc6 {[%emt 0:00:00]} 3. g3 {[%emt 0:00:08]} g6 {[%emt 0:00:07]} 4. Bg2 {[%emt 0:00:10]} Bg7 {[%emt 0:00:04]} 5. d3 {[%emt 0:00:08]} Rb8 {[%emt 0:00:49]} 6. Be3 {[%emt 0:00:12]} d6 {[%emt 0:00:07]} 7. a4 {[%emt 0:07:14]} a6 {[%emt 0:03:14]} 8. Qd2 {[%emt 0:00:13]} e6 {[%emt 0:02:17]} 9. Nge2 {[%emt 0:00:13]} b5 {[%emt 0:00:58]} 10. axb5 {[%emt 0:00:12]} axb5 {[%emt 0:00:05]} 11. d4 {[%emt 0:08:59]} b4 {[%emt 0:11:34]} 12. Na4 {[%emt 0:05:46]} cxd4 {[%emt 0:01:51]} 13. Nxd4 {[%emt 0:00:12]} Nge7 {[%emt 0:00:17]} 14. O-O $11 {[%emt 0:15:43]} Ne5 {[%emt 0:08:18]} 15. Qe2 {[%emt 0:09:27]} Qc7 {[%emt 0:06:54]} 16. Nb5 {[%emt 0:05:06]} Qc6 {[%emt 0:02:54]} 17. Nb6 {[%emt 0:01:17]} Rxb6 {[%emt 0:03:35]} 18. Bxb6 {[%emt 0:00:57]} Qxb6 {[%emt 0:00:24]} 19. Ra7 {[%emt 0:12:34]} O-O {[%emt 0:04:19]} 20. Rxe7 {[%emt 0:00:51]} Ba6 {[%emt 0:00:10]} 21. Ra1 {[%emt 0:02:35]} Bxb5 {[%emt 0:00:34]} 22. Qd2 {[%emt 0:00:23]} Bd7 {[%emt 0:04:17]} 0-1

[Event "Weekend Groninger Combinatie 2019"]
[Site "Groningen"]
[Date "2019.06.01"]
[Round "5.1"]
[White "Maris, Ivo"]
[Black "Ernst, Sipke"]
[Result "1/2-1/2"]
[ECO "A50"]
[WhiteElo "2386"]
[BlackElo "2540"]
[Annotator "ChessBase"]
[PlyCount "69"]
[EventDate "2019.05.30"]
[EventType "swiss"]
[EventCountry "NED"]
[SourceTitle "playchess.com"]
[Source "ChessBase"]
[SourceQuality "1"]
[TimeControl "5400+30"]

1. c4 {[%emt 0:02:45]} b6 {[%emt 0:01:54]} 2. Nf3 {[%emt 0:02:49]} Bb7 {[%emt 0:00:11]} 3. g3 {[%emt 0:00:15]} g6 {[%emt 0:00:04]} 4. Bg2 {[%emt 0:00:13]} Bg7 {[%emt 0:00:05]} 5. d4 {[%emt 0:00:59]} Nf6 {[%emt 0:00:04]} 6. O-O {[%emt 0:00:25]} O-O {[%emt 0:00:04]} 7. Nc3 {[%emt 0:05:46]} Ne4 {[%emt 0:00:18]} 8. Nxe4 {[%emt 0:00:32]} Bxe4 {[%emt 0:00:06]} 9. Be3 {[%emt 0:11:29]} d6 {[%emt 0:09:44]} 10. Qd2 {[%emt 0:01:20]} Re8 {[%emt 0:01:47]} 11. Bh6 {[%emt 0:02:49]} Bh8 {[%emt 0:00:42]} 12. Qf4 {[%emt 0:00:59]} Bxf3 {[%emt 0:00:20]} 13. Qxf3 {[%emt 0:02:03]} c6 {[%emt 0:00:05]} 14. Rad1 {[%emt 0:01:58]} e6 {[%emt 0:04:02]} 15. Rfe1 {[%emt 0:00:56]} a6 {[%emt 0:02:20]} 16. Qa3 {[%emt 0:11:28]} Ra7 {[%emt 0:09:28]} 17. h4 {[%emt 0:16:29]} Rd7 {[%emt 0:00:50]} 18. Qa4 {[%emt 0:02:20]} b5 {[%emt 0:04:29]} 19. Qc2 {[%emt 0:04:07]} d5 {[%emt 0:01:37]} 20. cxd5 {[%emt 0:00:24]} cxd5 {[%emt 0:00:21]} 21. Bf4 {[%emt 0:00:47]} Qb6 {[%emt 0:04:24]} 22. e3 {[%emt 0:01:35]} Nc6 {[%emt 0:00:13]} 23. Rc1 {[%emt 0:00:37]} Rc8 {[%emt 0:04:18]} 24. Qe2 {[%emt 0:04:12]} Rdd8 {[%emt 0:02:01]} 25. Bf3 {[%emt 0:04:24]} Bf6 {[%emt 0:01:35]} 26. Kg2 {[%emt 0:01:49]} Ne7 {[%emt 0:01:56]} 27. Qd2 {[%emt 0:00:34]} Kg7 {[%emt 0:03:32]} 28. Rxc8 {[%emt 0:01:19]} Rxc8 {[%emt 0:00:05]} 29. Rc1 {[%emt 0:00:06]} Rc6 {[%emt 0:03:27]} 30. Rc2 {[%emt 0:01:25]} Rxc2 {[%emt 0:01:00]} 31. Qxc2 {[%emt 0:00:02]} Nc6 {[%emt 0:00:09]} 32. Bg5 {[%emt 0:01:56]} Bxg5 {[%emt 0:01:56]} 33. hxg5 {[%emt 0:00:02]} Ne7 {[%emt 0:02:11]} 34. Be2 {[%emt 0:00:51]} Qd6 {[%emt 0:06:56]} 35. a4 {[%emt 0:01:24]} 1/2-1/2

[Event "Weekend Groninger Combinatie 2019"]
[Site "Groningen"]
[Date "2019.06.01"]
[Round "5.2"]
[White "Zwirs, Nico"]
[Black "Colbow, Collin"]
[Result "1/2-1/2"]
[ECO "A42"]
[WhiteElo "2386"]
[BlackElo "2169"]
[Annotator "ChessBase"]
[PlyCount "72"]
[EventDate "2019.05.30"]
[EventType "swiss"]
[EventCountry "NED"]
[SourceTitle "playchess.com"]
[Source "ChessBase"]
[SourceQuality "1"]
[TimeControl "5400+30"]

1. c4 {[%emt 0:00:00]} c5 {[%emt 0:00:00]} 2. Nf3 {[%emt 0:01:07]} g6 {[%emt 0:00:18]} 3. d4 {[%emt 0:02:11]} Bg7 {[%emt 0:00:47]} 4. e4 {[%emt 0:02:48]} d6 {[%emt 0:00:15]} 5. dxc5 {[%emt 0:01:21]} dxc5 {[%emt 0:07:05]} 6. Qxd8+ {[%emt 0:00:21]} Kxd8 {[%emt 0:00:05]} 7. Nc3 {[%emt 0:01:07]} Bxc3+ {[%emt 0:03:02]} 8. bxc3 {[%emt 0:00:01]} Nc6 {[%emt 0:01:30]} 9. Bf4 {[%emt 0:03:24]} h6 {[%emt 0:05:31]} 10. Ne5 {[%emt 0:02:05]} Nxe5 {[%emt 0:03:50]} 11. Bxe5 {[%emt 0:00:42]} Nf6 {[%emt 0:00:49]} 12. Be2 {[%emt 0:06:50]} Be6 {[%emt 0:06:04]} 13. f3 {[%emt 0:01:58]} Kc8 {[%emt 0:01:18]} 14. a4 {[%emt 0:04:40]} a5 {[%emt 0:07:11]} 15. Kd2 {[%emt 0:10:53]} Rd8+ {[%emt 0:01:52]} 16. Kc2 {[%emt 0:00:51]} Kd7 {[%emt 0:03:33]} 17. Bf4 {[%emt 0:09:21]} g5 {[%emt 0:07:03]} 18. Be3 {[%emt 0:01:02]} Kc6 {[%emt 0:01:32]} 19. h4 {[%emt 0:00:38]} Rg8 {[%emt 0:00:56]} 20. Rad1 {[%emt 0:13:24]} Rac8 {[%emt 0:07:19]} 21. g4 {[%emt 0:01:34]} b6 {[%emt 0:02:09]} 22. Rdg1 {[%emt 0:04:09]} Rg6 {[%emt 0:06:13]} 23. e5 {[%emt 0:05:14]} Nd7 {[%emt 0:00:58]} 24. f4 {[%emt 0:00:19]} gxf4 {[%emt 0:01:38]} 25. Bxf4 {[%emt 0:00:01]} Rcg8 {[%emt 0:01:29]} 26. h5 {[%emt 0:00:56]} Rg5 {[%emt 0:00:52]} 27. Bxg5 {[%emt 0:03:46]} Rxg5 {[%emt 0:00:13]} 28. Rh3 {[%emt 0:05:35]} Nxe5 {[%emt 0:00:54]} 29. Rhg3 {[%emt 0:00:21]} Nxc4 {[%emt 0:06:42]} 30. Bxc4 {[%emt 0:00:44]} Bxc4 {[%emt 0:00:04]} 31. Kd2 {[%emt 0:01:11]} b5 {[%emt 0:03:07]} 32. axb5+ {[%emt 0:00:09]} Kxb5 {[%emt 0:00:04]} 33. Rb1+ {[%emt 0:00:40]} Kc6 {[%emt 0:01:20]} 34. Ra1 {[%emt 0:00:07]} Be6 {[%emt 0:05:32]} 35. Rxa5 {[%emt 0:00:25]} Kb6 {[%emt 0:00:10]} 36. Ra8 {[%emt 0:00:36]} Rxg4 {[%emt 0:01:26]} 1/2-1/2